fUSD/lending_fUSD_20240813
["ID","MTS","AMOUNT","RATE_DAILY","PERIOD"]
[334739579,1723524043183,-150.0,0.00012518,2]
[334739580,1723524043209,-150.0,0.00012518,2]
[334739581,1723524043232,-150.0,0.00012518,2]
[334739582,1723524043256,-150.0,0.0001252,2]
[334739583,1723524043276,-24330.27070222,0.0001254,2]
[334739584,1723524043475,-656.57405063,0.0001254,2]
[334739585,1723524043499,-200.0,0.00012545,2]
[334739586,1723524043521,-2000.0,0.00012545,2]
[334739587,1723524043543,-200.0,0.00012545,2]
[334739588,1723524043565,-188.28187441,0.00012575,2]
[334739589,1723524043586,-1257.0,0.0001258,2]
[334739590,1723524043608,-1924.0,0.0001258,2]
[334739591,1723524043629,-622.0,0.0001258,2]
[334739592,1723524043661,-1298.34223089,0.00012581,2]
[334739593,1723524043683,-1739.7277323,0.00012613,2]
[334739594,1723524043705,-2909.33193,0.0001264,2]
[334739595,1723524043727,-152.41,0.00012661,2]
[334739596,1723524043749,-200.0,0.00012671,2]
[334739597,1723524043773,-2000.0,0.00012671,2]
[334739598,1723524043794,-200.0,0.00012671,2]
[334739599,1723524043818,-583.99242124,0.00012691,3]
[334739600,1723524043840,-1000.0,0.00012785,2]
[334739601,1723524043861,-200.0,0.00012797,2]
[334739602,1723524043883,-306.554489,0.00012797,2]
[334739603,1723524043906,-306.554489,0.00012797,2]
[334739604,1723524043931,-2000.0,0.00012797,2]
[334739605,1723524043957,-200.0,0.00012797,2]
[334739606,1723524043982,-165.52184477,0.00012855,2]
[334739607,1723524044007,-165.52184477,0.00012855,2]
[334739608,1723524044028,-164.39195275,0.00012928,2]
[334739609,1723524044050,-164.39195275,0.00012928,2]
[334739610,1723524044076,-476.98360421,0.00012928,2]
[334739611,1723524044101,-307.66155524,0.00012928,2]
[334739612,1723524044123,-587.0,0.00012928,2]
[334739613,1723524044145,-794.0,0.00012931,2]
[334739614,1723524044167,-1877.50810544,0.00012997,2]
[334739615,1723524044189,-1009.3,0.00013,2]
[334739616,1723524044776,476.98360421,0.00012924,2]
[334739617,1723524044844,1500.0,0.00012696,2]
[334739618,1723524044903,150.0,0.00012458,2]
[334739619,1723524044939,150.0,0.00012472,2]
[334739620,1723524045008,150.0,0.00012325,2]
[334739621,1723524045040,150.0,0.00012398,2]
[334739622,1723524045099,150.0,0.00012268,2]
[334739623,1723524045346,150.0,0.00012439,2]
[334739624,1723524046002,908.848,0.00012416,2]
[334739625,1723524046627,150.0,0.00012303,2]
[334739626,1723524046661,150.0,0.00012202,2]
[334739627,1723524049025,285.01907693,0.00012995,2]
[334739628,1723524053784,164.39195275,0.00012924,2]
[334739629,1723524056965,14155.8675,0.0001206,2]
[334739630,1723524057616,1298.34223089,0.0001254,2]
[334739631,1723524061619,300.0,0.00012999,2]
[334739632,1723524061685,245000.0,0.0001206,2]
[334739633,1723524065474,150.0,0.000239,120]
[334739634,1723524065526,991.02949845,0.00012999,2]
[334739635,1723524066128,153.277245,0.00012298,2]
[334739636,1723524066434,153.277245,0.000123,2]
[334739637,1723524066752,153.277245,0.00012427,2]
[334739638,1723524067052,153.277245,0.0001246,2]
[334739639,1723524067395,153.277245,0.00012666,2]
[334739640,1723524069306,153.277245,0.00012298,2]
[334739641,1723524069725,153.277245,0.000123,2]
[334739642,1723524070036,153.277245,0.00012427,2]
[334739643,1723524070344,153.277245,0.0001246,2]
[334739644,1723524070704,153.277245,0.00012666,2]
[334739645,1723524075243,495.51474923,0.00012999,2]
[334739646,1723524080890,2561.91,0.00012803,2]
[334739647,1723524085213,247.75737461,0.00012999,2]
[334739648,1723524092843,1939.55462,0.00013,2]
[334739649,1723524100278,5000.0,0.00012928,2]
[334739650,1723524105902,528.96350263,0.00012995,2]
[334739651,1723524109140,155.77127138,0.000115,2]
[334739652,1723524113420,500.0,0.0001206,2]
[334739653,1723524115266,5000.0,0.00012928,2]
[334739654,1723524125290,247.75737461,0.00012999,2]
[334739655,1723524152655,855.42999611,0.000268,120]
[334739656,1723524154143,155.77127138,0.000115,2]
[334739657,1723524182501,1008.28,0.00013,2]
[334739658,1723524201184,155.77127138,0.000115,2]
[334739659,1723524219767,200.73,0.00010903,2]
[334739660,1723524261146,155.77127138,0.000115,2]
[334739661,1723524310317,622.0,0.000125,2]
[334739662,1723524314278,1257.0,0.000125,2]
[334739663,1723524317355,1673.0,0.000125,2]
[334739664,1723524319934,1924.0,0.000125,2]
[334739665,1723524326534,1204.0,0.000125,2]
[334739666,1723524329685,21759.0,0.000125,2]
[334739667,1723524334301,1542.0,0.000125,2]
[334739668,1723524345953,556.0,0.000125,2]
[334739669,1723524349169,810.0,0.000125,2]
[334739670,1723524352470,446.0,0.000125,2]
[334739671,1723524356204,150.0,0.000125,2]
[334739672,1723524368173,551.0,0.000125,2]
[334739673,1723524370776,1895.0,0.000125,2]
[334739674,1723524373141,1386.13,0.00012654,2]
[334739675,1723524374631,150.0,0.000125,2]
[334739676,1723524390839,155.77127138,0.000115,2]
[334739677,1723524400637,204.04,0.00012642,2]
[334739678,1723524401397,3291.0,0.000125,2]
[334739679,1723524404382,1182.0,0.000125,2]
[334739680,1723524407634,205.384,0.000125,2]
[334739681,1723524436905,1275.75177255,0.00012928,2]
[334739682,1723524560856,420.36124782,0.00012753,2]
[334739699,1723524562237,388.08478933,0.00012797,2]
[334739755,1723524582839,1006.01974632,0.00012995,2]
[334739760,1723524601638,1000.0,0.00012579,2]
[334739761,1723524610396,5842.0,0.000125,2]
[334739762,1723524613238,21759.0,0.000125,2]
[334739763,1723524616928,5134.0,0.000125,2]
[334739764,1723524620917,1673.0,0.000125,2]
[334739765,1723524623788,289.0,0.000125,2]
[334739766,1723524629106,1204.0,0.000125,2]
[334739767,1723524632034,-1634.56112514,0.00013,2]
[334739768,1723524632043,-300.0,0.00013046,2]
[334739769,1723524632053,-6746.3221632,0.00013047,2]
[334739770,1723524632120,-1143.0,0.00013047,2]
[334739779,1723524632762,-880.05778575,0.00013047,2]
[334739780,1723524632774,-6402.62715218,0.00013047,2]
[334739781,1723524632789,-327.39805379,0.00013047,2]
[334739782,1723524632800,-481.13236969,0.00013047,2]
[334739785,1723524638369,-485.22914892,0.00013,2]
[334739786,1723524638379,-116.28271544,0.00013,2]
[334739787,1723524638394,-2225.7591055,0.00013,2]
[334739788,1723524638403,-666.99767279,0.00013047,2]
[334739789,1723524638479,-5612.4653092,0.00013047,2]
[334739790,1723524638490,-6082.1497501,0.00013057,2]
[334739791,1723524638499,-2421.8522114,0.00013057,2]
[334739792,1723524638508,-297.51588055,0.00013133,2]
[334739793,1723524638518,-200.73,0.00013167,2]
[334739794,1723524638527,-1074.78314637,0.00013199,2]
[334739795,1723524638536,-520.17986791,0.00013199,2]
[334739797,1723524638546,-520.17986791,0.00013199,2]
[334739799,1723524638555,-401.43055068,0.00013283,2]
[334739800,1723524638565,-159.62357463,0.00013297,2]
[334739801,1723524638574,-155.0,0.00013297,2]
[334739802,1723524638584,-179.4623719,0.00013302,2]
[334739803,1723524638593,-155.0,0.00013302,2]
[334739804,1723524638604,-270.60181535,0.00013303,2]
[334739805,1723524638614,-2907.0037697,0.00013303,2]
[334739806,1723524638623,-1192.44601834,0.0001331,3]
[334739807,1723524638632,-203.42899612,0.0001331,2]
[334739808,1723524638641,-419.14897991,0.0001331,2]
[334739809,1723524638650,-380.35876131,0.0001331,2]
[334739810,1723524638659,-155.0,0.0001331,2]
[334739811,1723524638668,-211.07994478,0.00013378,2]
[334739812,1723524638678,-797.97333372,0.00013378,2]
[334739813,1723524640179,-243.27449517,0.00013303,2]
[334739814,1723524640189,-41.84986074,0.0001331,2]
[334739815,1723524640398,-177.07805368,0.0001331,2]
[334739816,1723524640407,-562.79458758,0.00013378,2]
[334739817,1723524640481,-1058.06846759,0.00013378,2]
[334739818,1723524640591,-1456.91962747,0.00013378,2]
[334739819,1723524640602,-595.1329658,0.00013398,2]
[334739820,1723524640612,-155.0,0.00013479,2]
[334739821,1723524640622,-595.1329658,0.00013479,2]
[334739823,1723524640631,-206.78622014,0.00013479,2]
[334739825,1723524640640,-3082.46394052,0.00013479,2]
[334739827,1723524640649,-3005.20801141,0.00013483,2]
[334739829,1723524640660,-27.40686098,0.00013483,2]
[334739831,1723524640669,-3032.61487239,0.00013483,2]
[334739833,1723524640679,-454.61712704,0.00013489,2]
[334739835,1723524640688,-454.61712704,0.00013489,2]
[334739837,1723524640697,-2145.72746528,0.00013489,2]
[334739839,1723524640706,-2606.2289,0.00013511,2]
[334739840,1723524640715,-226.006442,0.000136,3]
[334739843,1723524640726,-773.993558,0.000136,3]
[334739844,1723524640735,-8169.79030662,0.000136,2]
[334739847,1723524640747,-8801.34279338,0.000136,2]
[334739849,1723524640756,-276.20586814,0.00013611,2]
[334739851,1723524640767,-517.79413186,0.00013611,2]
[334739853,1723524640776,-8426.04610303,0.0001362,2]
[334740120,1723524643551,-4838.07377555,0.0001362,2]
[334740122,1723524643560,-151.0,0.00013659,2]
[334740124,1723524643570,-4056.52390987,0.0001367,2]
[334740150,1723524643818,-5215.54680141,0.0001367,2]
[334740152,1723524643828,-921.63590723,0.00013698,2]
[334740154,1723524643837,-687.08646626,0.00013698,2]
[334740156,1723524643847,-500.0,0.00013699,2]
[334740158,1723524643857,-372.71,0.00013699,2]
[334740160,1723524643866,-2751.0,0.00013699,2]
[334740161,1723524643875,-200.0,0.00013699,2]
[334740163,1723524643885,-941.3999,0.00013699,2]
[334740165,1723524643894,-1000.0,0.00013699,2]
[334740167,1723524643904,-649.92257342,0.00013699,2]
[334740169,1723524643913,-628.70277812,0.00013699,2]
[334740171,1723524643923,-309.32304521,0.00013699,2]
[334740173,1723524643932,-493.63885733,0.00013699,2]
[334740175,1723524643942,-61831.3152,0.000137,2]
[334740177,1723524643951,-42036.27299029,0.000137,2]
[334740279,1723524646120,-520.17986791,0.00013165,2]
[334740280,1723524646130,-155.0,0.00013283,2]
[334740281,1723524646140,-600.79792946,0.00013648,2]
[334740282,1723524646149,-1548.17020971,0.000137,2]
[334740283,1723524646159,-723.4767735,0.0001372,2]
[334740284,1723524646170,-298.67239716,0.0001372,2]
[334740285,1723524646179,-723.4767735,0.0001372,2]
[334740286,1723524646189,-265.45661365,0.0001372,2]
[334740287,1723524646198,-264.51117711,0.00013789,2]
[334740288,1723524646208,-357.4813523,0.00013789,2]
[334740289,1723524646217,-347.72579691,0.00013789,2]
[334740290,1723524646227,-255.21992957,0.00013789,2]
[334740291,1723524646236,-155.45612317,0.00013799,2]
[334740292,1723524646246,-432.5166998,0.00013799,2]
[334740293,1723524646255,-211.03413449,0.00013799,2]
[334740294,1723524646264,-205.95660742,0.00013799,2]
[334740295,1723524646273,-197.1552014,0.00013799,2]
[334740296,1723524646283,-367.83900343,0.00013799,2]
[334740297,1723524646292,-167.57082198,0.00013799,2]
[334740298,1723524646301,-155.47908938,0.00013799,2]
[334740299,1723524646312,-367.83900343,0.00013799,2]
[334740300,1723524646322,-221.61938995,0.000138,2]
[334740301,1723524646332,-172.00474582,0.000138,2]
[334740302,1723524646341,-7500.0,0.000138,2]
[334740303,1723524646351,-1007.0,0.000138,3]
[334740304,1723524646361,-325.3614161,0.000138,2]
[334740305,1723524646372,-330.22671498,0.00013825,2]
[334740306,1723524646382,-359.44687371,0.00013825,2]
[334740307,1723524646392,-155.0,0.00013825,2]
[334740308,1723524646402,-328.27252306,0.00013859,2]
[334740309,1723524646412,-253.84,0.0001386,2]
[334740310,1723524646423,-200.0,0.00013873,2]
[334740311,1723524646434,-440.12075518,0.00013879,2]
[334740312,1723524646444,-364.2209304,0.00013879,2]
[334740313,1723524646455,-440.12075518,0.00013879,2]
[334740314,1723524646465,-236.36319912,0.00013879,2]
[334740315,1723524646476,-18831.06363515,0.00013879,2]
[334740316,1723524646501,-422.91126348,0.00013879,2]
[334740317,1723524646512,-1138.65459664,0.00013879,2]
[334740318,1723524646524,-1250.0945842,0.00013879,2]
[334740321,1723524646538,-1712.92437068,0.00013879,2]
[334740322,1723524646556,-7416.2350021,0.00013879,2]
[334740323,1723524646587,-23469.29111098,0.00013879,2]
[334740324,1723524646599,-9228.9545958,0.00013879,2]
[334740325,1723524746354,5350.0137,0.00012947,2]
[334740347,1723524784152,1003.36,0.00013,2]
[334740348,1723524797884,297.51588055,0.00012995,2]
[334740349,1723524800587,791.2211021,0.00012947,2]
[334740350,1723524824663,250.0,0.00012905,2]
[334740352,1723524851315,1074.78314637,0.00012995,2]
[334740353,1723524856382,2637.04,0.00012911,2]
[334740354,1723524881313,1074.78314637,0.00012995,2]
[334740355,1723524893548,193.11,0.00012872,2]
[334740356,1723524900681,150.0,0.00012872,2]
[334740357,1723524906593,791.2211021,0.00012947,2]
[334740358,1723524909977,1204.0,0.00012588,2]
[334740359,1723524913695,1672.365,0.00012588,2]
[334740360,1723524917973,21707.0,0.00012588,2]
[334740361,1723524925346,245.63,0.00010946,2]
[334740362,1723524938836,550.0,0.0001,2]
[334740363,1723524939924,600.0,0.00012,2]
[334740364,1723524959368,155.77127138,0.000125,2]
[334740365,1723524999154,155.77127138,0.000125,2]
[334740366,1723525003592,791.2211021,0.00010946,2]
[334740367,1723525020280,242.24690825,0.00012995,2]
[334740368,1723525059154,155.77127138,0.000125,2]
[334740369,1723525065296,200.0,0.00012817,2]
[334740370,1723525092981,155.0,0.00012995,2]
[334740371,1723525120153,155.77127138,0.000125,2]
[334740372,1723525123007,155.0,0.00012995,2]
[334740373,1723525130616,664.75476777,0.00012995,2]
[334740374,1723525131257,250.0,0.00012837,2]
[334740375,1723525137835,23900.0,0.00012838,2]
[334740377,1723525171538,172.09,0.00012766,2]
[334740378,1723525213410,289.0,0.00012588,2]
[334740379,1723525216618,1257.0,0.00012588,2]
[334740380,1723525220487,1542.0,0.00012588,2]
[334740381,1723525229013,622.0,0.00012588,2]
[334740382,1723525243124,5833.0,0.00012728,2]
[334740383,1723525246136,190.50614179,0.000125,2]
[334740384,1723525249534,1924.0,0.00012728,2]
[334740385,1723525261376,810.0,0.00012742,2]
[334740386,1723525263870,211.07994478,0.00012995,2]
[334740387,1723525264935,150.0,0.00012742,2]
[334740388,1723525271195,343.777,0.00012742,2]
[334740389,1723525274569,446.0,0.00012742,2]
[334740390,1723525285317,1704.34,0.00012769,2]
[334740391,1723525288561,551.0,0.00012769,2]
[334740392,1723525299202,203.42899612,0.00012995,2]
[334740393,1723525314382,3291.0,0.00012769,2]
[334740394,1723525318310,1094.85781009,0.00012735,2]
[334740395,1723525320273,1166.005,0.00012769,2]
[334740396,1723525345281,1318.52,0.00012733,2]
[334740398,1723525371291,193.12,0.0001273,2]
[334740399,1723525381671,1014.82,0.00013,2]
[334740400,1723525394293,1906.17556756,0.0001274,2]
[334740401,1723525397823,233.34,0.00010818,2]
[334740402,1723525533385,840.0,0.00012714,2]
[334740403,1723525649525,172841.26334186,0.00012854,2]
[334740408,1723525713556,35730.46351762,0.00012928,2]
[334740409,1723525742751,298.67239716,0.00012995,2]
[334740471,1723525795712,659.26,0.000128,2]
[334740472,1723525825610,205.7,0.0001276,2]
[334740478,1723525832508,-5000.0,0.00013,2]
[334740479,1723525832518,-160.1704594,0.00013033,2]
[334740480,1723525832527,-233.34,0.00013082,2]
[334740481,1723525832536,-432.5166998,0.00013133,2]
[334740482,1723525832545,-255.21992957,0.00013133,2]
[334740483,1723525832555,-522.31108657,0.00013165,2]
[334740484,1723525832564,-1000.0,0.00013197,2]
[334740485,1723525832573,-2500.0,0.00013197,2]
[334740486,1723525832583,-440.12075518,0.00013199,2]
[334740487,1723525832592,-2112.04801386,0.00013199,2]
[334740488,1723525832601,-202.92272316,0.00013283,2]
[334740489,1723525832611,-155.45612317,0.00013302,2]
[334740490,1723525832621,-3404.69572783,0.00013303,2]
[334740491,1723525832630,-313.75141166,0.00013303,2]
[334740492,1723525832640,-2841.34337643,0.00013303,2]
[334740493,1723525832649,-364.2209304,0.0001331,2]
[334740494,1723525832658,-1739.7277323,0.0001331,2]
[334740495,1723525832668,-570.4396593,0.0001331,2]
[334740497,1723525832787,-929.5603407,0.0001331,2]
[334740499,1723525832796,-166.39780491,0.00013378,2]
[334740501,1723525832806,-164.41632778,0.00013398,2]
[334740503,1723525832815,-420.36124782,0.00013465,2]
[334740505,1723525832824,-1139.21329126,0.00013489,2]
[334740507,1723525832834,-1298.34223089,0.00013489,2]
[334740509,1723525832843,-473.9897574,0.00013499,2]
[334740511,1723525832853,-388.08478933,0.00013533,2]
[334740513,1723525832862,-23033.0043,0.000136,2]
[334740515,1723525832871,-547.87854217,0.00013648,2]
[334740517,1723525832880,-476.98360421,0.0001367,2]
[334740518,1723525832890,-165.52184477,0.00013698,2]
[334740520,1723525832899,-310.59,0.00013699,2]
[334740523,1723525832909,-500.0,0.00013699,2]
[334740525,1723525832918,-200.0,0.00013699,2]
[334740527,1723525832927,-2751.0,0.00013699,2]
[334740529,1723525832937,-853.43941556,0.00013699,2]
[334740530,1723525832946,-3032.61487239,0.0001372,2]
[334740532,1723525832955,-151.0,0.00013738,2]
[334740534,1723525832965,-259.923,0.00013779,2]
[334740537,1723525832975,-202.799,0.0001378,2]
[334740538,1723525832986,-9272.07071128,0.00013799,2]
[334740539,1723525832995,-1939.55462,0.0001387,2]
[334740540,1723525833004,-4708.9644695,0.00013872,2]
[334740541,1723525833014,-15569.0887708,0.00013872,2]
[334740542,1723525833023,-1484.1897947,0.00013872,2]
[334740543,1723525833033,-318.51872812,0.00013878,2]
[334740544,1723525833043,-2000.0,0.00013879,2]
[334740545,1723525833052,-238.76506764,0.00013879,2]
[334740546,1723525833062,-150.0,0.00013879,2]
[334740547,1723525833071,-150.0,0.00013879,2]
[334740548,1723525833081,-150.0,0.00013879,2]
[334740549,1723525833091,-252.86012166,0.00013879,2]
[334740550,1723525833101,-150.0,0.00013879,2]
[334740551,1723525833110,-150.0,0.00013879,2]
[334740552,1723525833120,-150.0,0.00013879,2]
[334740553,1723525833129,-1939.55462,0.00013879,2]
[334740554,1723525833139,-528.96350263,0.00013879,2]
[334740555,1723525833149,-394.9538299,0.00013896,2]
[334740556,1723525833159,-1074.78314637,0.00013896,2]
[334740557,1723525833169,-2607.88763814,0.00013899,2]
[334740558,1723525833178,-1287.8716,0.000139,2]
[334740559,1723525833187,-16689.7114,0.000139,2]
[334740560,1723525833197,-15441.7217,0.000139,2]
[334740561,1723525833206,-1100.0,0.000139,5]
[334740562,1723525833216,-1267.18527856,0.00013973,2]
[334740563,1723525835159,154.49012613,0.00027,120]
[334740677,1723525840322,-1339.21590706,0.00013,2]
[334740683,1723525840382,-1480.75,0.00013,2]
[334740847,1723525843419,-2180.03409294,0.00013,2]
[334740849,1723525843429,-166.39780491,0.0001331,2]
[334740851,1723525843439,-528.96350263,0.00013859,2]
[334740854,1723525843449,-246.65467744,0.00013973,2]
[334740855,1723525843458,-739.87,0.00013973,2]
[334740857,1723525843466,-145.57931323,0.00013973,2]
[334740929,1723525860105,235.94,0.00011274,2]
[334740931,1723525937159,150.0,0.00012963,2]
[334740932,1723525981551,1355.144177,0.00013,2]
[334740933,1723525991114,3579.6963,0.000129,2]
[334740934,1723525991651,516.86606196,0.00012995,2]
[334740935,1723525999889,266.12,0.00012969,2]
[334740936,1723526001443,12703001.69,0.00012,2]
[334740938,1723526030812,229141.0,0.00012,2]
[334740939,1723526036042,328.0,0.00012923,2]
[334740940,1723526048019,302.81770317,0.00027,120]
[334740941,1723526064570,23405.0,0.00012905,2]
[334740942,1723526109674,1542.0,0.00012867,2]
[334740943,1723526117125,941.507,0.00012867,2]
[334740944,1723526122503,450.074,0.00012867,2]
[334740945,1723526125429,622.0,0.00012867,2]
[334740946,1723526139032,810.0,0.00012867,2]
[334740947,1723526141484,446.0,0.00012867,2]
[334740948,1723526149126,150.0,0.00012867,2]
[334740949,1723526170001,551.0,0.00012867,2]
[334740950,1723526206985,173.2,0.00012907,2]
[334740951,1723526214838,155.45612317,0.00012995,2]
[334740952,1723526269690,250.0,0.00012876,2]
[334740953,1723526286469,1472.33,0.00012883,2]
[334740954,1723526337717,204.37,0.00012864,2]
[334740956,1723526376701,2000.0,0.00012882,2]
[334740957,1723526378493,619.94,0.00012882,2]
[334740958,1723526382792,250.0,0.00012895,2]
[334740959,1723526414531,257.28,0.00010981,2]
[334740960,1723526436219,493.65156674,0.00012995,2]
[334740961,1723526515902,528.42,0.00012871,2]
[334740962,1723526531773,737.6,0.0001284,2]
[334740963,1723526544909,199.0575,0.00024931,60]
[334740964,1723526582988,150.0,0.00013,2]
[334740965,1723526697552,2112.04801386,0.00012928,2]
[334740966,1723526765288,550.0,0.0001,2]
[334740967,1723526766388,600.0,0.00012,2]
[334740968,1723526795805,5000.0,0.00012928,2]
[334740973,1723526819983,736.16,0.00012727,2]
[334740991,1723526893575,982.36575166,0.00012995,2]
[334740992,1723526914226,476.98360421,0.00012995,2]
[334740993,1723526920980,195.36,0.00012742,2]
[334740996,1723526966400,1298.34223089,0.00012928,2]
[334741020,1723526972173,5280.35525315,0.00012193,2]
[334741023,1723526988220,298.98516579,0.000125,2]
[334741024,1723527016262,1542.0,0.00012867,2]
[334741025,1723527019773,578.204,0.00012867,2]
[334741026,1723527020162,202.92272316,0.00012995,2]
[334741027,1723527024039,459.66,0.00012707,2]
[334741028,1723527026849,323.38420246,0.00012995,2]
[334741035,1723527031737,-166.39780491,0.00013,2]
[334741036,1723527031747,-179.17215777,0.00013,2]
[334741037,1723527031804,-300.0,0.00013,2]
[334741059,1723527037512,-49.79134486,0.00013,2]
[334741060,1723527037524,-2342.04182094,0.00013066,2]
[334741061,1723527037537,-257.28,0.00013245,2]
[334741062,1723527037549,-959.64824796,0.00013245,2]
[334741063,1723527037560,-35730.46351762,0.00013398,2]
[334741064,1723527037572,-249.88896904,0.00013398,2]
[334741065,1723527037585,-300.0,0.00013478,2]
[334741066,1723527037598,-150.0,0.00013478,2]
[334741067,1723527037610,-3404.69572783,0.00013479,2]
[334741068,1723527037622,-267.36463336,0.00013479,2]
[334741069,1723527037635,-3032.61487239,0.00013483,2]
[334741070,1723527037647,-9272.07071128,0.00013483,2]
[334741071,1723527037659,-651.74691723,0.00013483,2]
[334741072,1723527037671,-155.0,0.0001351,2]
[334741073,1723527037683,-2841.34337643,0.0001351,2]
[334741074,1723527037695,-211.75773776,0.0001351,2]
[334741075,1723527037708,-1000.0,0.00013538,2]
[334741076,1723527037722,-1000.0,0.00013538,2]
[334741077,1723527037735,-11937.70789074,0.00013548,2]
[334741078,1723527037747,-649.92257342,0.00013561,2]
[334741079,1723527037760,-711.45493627,0.00013561,2]
[334741080,1723527037773,-687.08646626,0.00013579,2]
[334741081,1723527037785,-835.42,0.000136,2]
[334741082,1723527037797,-242671.0,0.00013638,2]
[334741083,1723527037810,-205.95660742,0.00013648,2]
[334741084,1723527037822,-723.4767735,0.00013648,2]
[334741085,1723527037835,-205.95660742,0.00013648,2]
[334741086,1723527037847,-401.43055068,0.00013648,2]
[334741087,1723527037860,-628.70277812,0.00013648,2]
[334741088,1723527037872,-309.32304521,0.00013648,2]
[334741089,1723527037885,-155.0,0.00013648,2]
[334741090,1723527037897,-223.76,0.0001367,2]
[334741091,1723527037909,-197.1552014,0.0001367,2]
[334741092,1723527037921,-2500.0,0.00013689,2]
[334741093,1723527037933,-330.22671498,0.00013698,2]
[334741094,1723527037946,-200.0,0.00013699,2]
[334741095,1723527037957,-2751.0,0.00013699,2]
[334741096,1723527037970,-258.82,0.00013699,2]
[334741097,1723527037988,-500.0,0.00013699,2]
[334741098,1723527038003,-236.36319912,0.00013699,2]
[334741099,1723527038020,-555.22567681,0.000137,2]
[334741100,1723527038035,-29295.3468,0.000137,2]
[334741101,1723527038050,-990.93,0.000137,2]
[334741102,1723527038064,-846.37,0.000137,2]
[334741103,1723527038078,-32107.86,0.000137,2]
[334741104,1723527038091,-835.34,0.000137,2]
[334741105,1723527038105,-388.08478933,0.00013714,2]
[334741106,1723527038118,-347.72579691,0.0001372,2]
[334741107,1723527038131,-1739.7277323,0.0001372,2]
[334741108,1723527038145,-265.45661365,0.0001372,2]
[334741109,1723527038158,-211.07994478,0.0001372,2]
[334741110,1723527038171,-493.63885733,0.0001372,2]
[334741111,1723527038184,-359.44687371,0.0001372,2]
[334741112,1723527038196,-155.0,0.0001372,2]
[334741113,1723527038209,-156.25231577,0.00013746,2]
[334741114,1723527038221,-200.0,0.00013773,2]
[334741115,1723527038234,-152.41,0.00013779,2]
[334741116,1723527038246,-500.0,0.00013787,2]
[334741117,1723527038259,-500.0,0.00013787,2]
[334741118,1723527038271,-500.0,0.00013787,2]
[334741119,1723527038284,-500.0,0.00013787,2]
[334741120,1723527038296,-500.0,0.00013787,2]
[334741121,1723527038309,-500.0,0.00013787,2]
[334741122,1723527038321,-310.50770484,0.00013787,2]
[334741123,1723527038333,-500.0,0.00013787,2]
[334741124,1723527038345,-643.87659517,0.00013787,2]
[334741125,1723527038357,-500.0,0.00013787,2]
[334741126,1723527038366,-500.0,0.00013787,2]
[334741127,1723527038375,-500.0,0.00013787,2]
[334741128,1723527038385,-500.0,0.00013787,2]
[334741129,1723527038394,-500.0,0.00013787,2]
[334741130,1723527038403,-500.0,0.00013787,2]
[334741131,1723527038412,-500.0,0.00013787,2]
[334741132,1723527038422,-500.0,0.00013787,2]
[334741133,1723527038431,-500.0,0.00013787,2]
[334741134,1723527038440,-500.0,0.00013787,2]
[334741135,1723527038451,-500.0,0.00013787,2]
[334741136,1723527038460,-500.0,0.00013787,2]
[334741137,1723527038469,-500.0,0.00013787,2]
[334741138,1723527038478,-500.0,0.00013787,2]
[334741139,1723527038817,-225.43975912,0.00013787,2]
[334741140,1723527038845,-374.33256263,0.00013787,2]